{"text_format":"3","workbook":"xlsx","n_sheets":2,"sheets":["Početak","Praznični budžet planer"],"not_rendered":{"defined_names":1},"read":"whole","date_system":"1900"}

{"sheet":"Početak","index":0,"n_rows":4,"n_cols":2,"rows_kept":4}
[null,"Kako se koristi ovaj predložak"]
[null,"Pratite troškove uz ovaj planer prazničnog budžeta."]
[null,"Da biste počeli, unesite Budžet i stvarne troškove u tabelu za svaku kategoriju."]
[null,"Budžet za praznike, ukupan stvarni iznos koji je potrošen i Razlika automatski se izračunavaju za vas."]

{"sheet":"Praznični budžet planer","index":1,"n_rows":36,"n_cols":14,"rows_kept":36,"merged":[[0,2,5,7],[2,10,2,11],[8,2,8,5],[8,10,8,13],[18,2,18,5],[18,10,18,13],[29,2,29,5],[29,10,29,13]]}
[null,null,"Praznični budžet \nplaner"]
[]
[{"$nulls":10},"BUDŽET ZA PRAZNIKE",null,null,{"$f":"SUM(Pokloni[Budžet],Pakovanje[Budžet],(Putovanje[Budžet],(Obroci[Budžet],(Zabava[Budžet],Razno[Budžet]))))","v":{"v":750,"d":"750.00 RSD"}}]
[{"$nulls":10},"STVARNO UTROŠENO",null,null,{"$f":"SUM((Pokloni[Stvarno],(Pakovanje[Stvarno],(Putovanje[Stvarno],(Obroci[Stvarno],(Zabava[Stvarno],(Razno[Stvarno])))))))","v":{"v":820,"d":"820.00 RSD"}}]
[]
[{"$nulls":10},"RAZLIKA (više/manje od budžeta)",null,null,{"$f":"SUM(N3-N4)","v":{"v":-70,"d":"-70.00 RSD"}}]
[]
[]
[null,null,"POKLONI",{"$nulls":7},"PRAZNIČNI OBROCI"]
[null,null,"Stavka","Budžet","Stvarno","Razlika",{"$nulls":4},"Stavka","Budžet","Stvarno","Razlika"]
[null,null,"Porodica",{"v":500,"d":"500.00 RSD"},{"v":495,"d":"495.00 RSD"},{"$f":"Pokloni[[#This Row],[Budžet]]-Pokloni[[#This Row],[Stvarno]]","v":{"v":5,"d":"5.00 RSD"}},{"$nulls":4},"Namirnice",null,null,{"$f":"Obroci[[#This Row],[Budžet]]-Obroci[[#This Row],[Stvarno]]","v":{"v":0,"d":"0.00 RSD"}}]
[null,null,"Prijatelji",{"v":250,"d":"250.00 RSD"},{"v":325,"d":"325.00 RSD"},{"$f":"Pokloni[[#This Row],[Budžet]]-Pokloni[[#This Row],[Stvarno]]","v":{"v":-75,"d":"-75.00 RSD"}},{"$nulls":4},"Vino",null,null,{"$f":"Obroci[[#This Row],[Budžet]]-Obroci[[#This Row],[Stvarno]]","v":{"v":0,"d":"0.00 RSD"}}]
[null,null,"Saradnici",null,null,{"$f":"Pokloni[[#This Row],[Budžet]]-Pokloni[[#This Row],[Stvarno]]","v":{"v":0,"d":"0.00 RSD"}},{"$nulls":4},"Ukrasi",null,null,{"$f":"Obroci[[#This Row],[Budžet]]-Obroci[[#This Row],[Stvarno]]","v":{"v":0,"d":"0.00 RSD"}}]
[null,null,"Nastavnici, dadilje, bebisiterke itd.",null,null,{"$f":"Pokloni[[#This Row],[Budžet]]-Pokloni[[#This Row],[Stvarno]]","v":{"v":0,"d":"0.00 RSD"}},{"$nulls":4},"Ostalo (kartica u poslednjoj koloni ovog reda za dodavanje reda)",null,null,{"$f":"Obroci[[#This Row],[Budžet]]-Obroci[[#This Row],[Stvarno]]","v":{"v":0,"d":"0.00 RSD"}}]
[null,null,"Dobrotvorne donacije",null,null,{"$f":"Pokloni[[#This Row],[Budžet]]-Pokloni[[#This Row],[Stvarno]]","v":{"v":0,"d":"0.00 RSD"}},{"$nulls":7},{"$f":"Obroci[[#This Row],[Budžet]]-Obroci[[#This Row],[Stvarno]]","v":{"v":0,"d":"0.00 RSD"}}]
[null,null,"Ostalo (kartica u poslednjoj koloni ovog reda za dodavanje reda)",null,null,{"$f":"Pokloni[[#This Row],[Budžet]]-Pokloni[[#This Row],[Stvarno]]","v":{"v":0,"d":"0.00 RSD"}}]
[null,null,"Zbir",{"$f":"SUBTOTAL(109,Pokloni[Budžet])","v":{"v":750,"d":"750.00 RSD"}},{"$f":"SUBTOTAL(109,Pokloni[Stvarno])","v":{"v":820,"d":"820.00 RSD"}},{"$f":"SUBTOTAL(109,Pokloni[Razlika])","v":{"v":-70,"d":"-70.00 RSD"}},{"$nulls":4},"Zbir",{"$f":"SUBTOTAL(109,Obroci[Budžet])","v":{"v":0,"d":"0.00 RSD"}},{"$f":"SUBTOTAL(109,Obroci[Stvarno])","v":{"v":0,"d":"0.00 RSD"}},{"$f":"SUBTOTAL(109,Obroci[Razlika])","v":{"v":0,"d":"0.00 RSD"}}]
[]
[null,null,"PAKOVANJE",{"$nulls":7},"ZABAVA"]
[null,null,"Stavka","Budžet","Stvarno","Razlika",{"$nulls":4},"Stavka","Budžet","Stvarno","Razlika"]
[null,null,"Umotavanje poklona",null,null,{"$f":"Pakovanje[[#This Row],[Budžet]]-Pakovanje[[#This Row],[Stvarno]]","v":{"v":0,"d":"0.00 RSD"}},{"$nulls":4},"Pomoć za žurku (barmen, ketering, čistači itd.)",null,null,{"$f":"Zabava[[#This Row],[Budžet]]-Zabava[[#This Row],[Stvarno]]","v":{"v":0,"d":"0.00 RSD"}}]
[null,null,"Oznake",null,null,{"$f":"Pakovanje[[#This Row],[Budžet]]-Pakovanje[[#This Row],[Stvarno]]","v":{"v":0,"d":"0.00 RSD"}},{"$nulls":4},"Ukrasi",null,null,{"$f":"Zabava[[#This Row],[Budžet]]-Zabava[[#This Row],[Stvarno]]","v":{"v":0,"d":"0.00 RSD"}}]
[null,null,"Pribor (traka, samolepljiva traka itd.)",null,null,{"$f":"Pakovanje[[#This Row],[Budžet]]-Pakovanje[[#This Row],[Stvarno]]","v":{"v":0,"d":"0.00 RSD"}},{"$nulls":4},"Hrana i piće",null,null,{"$f":"Zabava[[#This Row],[Budžet]]-Zabava[[#This Row],[Stvarno]]","v":{"v":0,"d":"0.00 RSD"}}]
[null,null,"Kutije",null,null,{"$f":"Pakovanje[[#This Row],[Budžet]]-Pakovanje[[#This Row],[Stvarno]]","v":{"v":0,"d":"0.00 RSD"}},{"$nulls":4},"Odeća",null,null,{"$f":"Zabava[[#This Row],[Budžet]]-Zabava[[#This Row],[Stvarno]]","v":{"v":0,"d":"0.00 RSD"}}]
[null,null,"Poštarina",null,null,{"$f":"Pakovanje[[#This Row],[Budžet]]-Pakovanje[[#This Row],[Stvarno]]","v":{"v":0,"d":"0.00 RSD"}},{"$nulls":4},"Karte",null,null,{"$f":"Zabava[[#This Row],[Budžet]]-Zabava[[#This Row],[Stvarno]]","v":{"v":0,"d":"0.00 RSD"}}]
[null,null,"Ostalo (kartica u poslednjoj koloni ovog reda za dodavanje reda)",null,null,{"$f":"Pakovanje[[#This Row],[Budžet]]-Pakovanje[[#This Row],[Stvarno]]","v":{"v":0,"d":"0.00 RSD"}},{"$nulls":4},"Večere napolju",null,null,{"$f":"Zabava[[#This Row],[Budžet]]-Zabava[[#This Row],[Stvarno]]","v":{"v":0,"d":"0.00 RSD"}}]
[{"$nulls":10},"Ostalo (kartica u poslednjoj koloni ovog reda za dodavanje reda)",null,null,{"$f":"Zabava[[#This Row],[Budžet]]-Zabava[[#This Row],[Stvarno]]","v":{"v":0,"d":"0.00 RSD"}}]
[null,null,"Zbir",{"$f":"SUBTOTAL(109,Pakovanje[Budžet])","v":{"v":0,"d":"0.00 RSD"}},{"$f":"SUBTOTAL(109,Pakovanje[Stvarno])","v":{"v":0,"d":"0.00 RSD"}},{"$f":"SUBTOTAL(109,Pakovanje[Razlika])","v":{"v":0,"d":"0.00 RSD"}},{"$nulls":4},"Zbir",{"$f":"SUBTOTAL(109,Zabava[Budžet])","v":{"v":0,"d":"0.00 RSD"}},{"$f":"SUBTOTAL(109,Zabava[Stvarno])","v":{"v":0,"d":"0.00 RSD"}},{"$f":"SUBTOTAL(109,Zabava[Razlika])","v":{"v":0,"d":"0.00 RSD"}}]
[]
[null,null,"PUTOVANJA",{"$nulls":7},"RAZNO"]
[null,null,"Stavka","Budžet","Stvarno","Razlika",{"$nulls":4},"Stavka","Budžet","Stvarno","Razlika"]
[null,null,"Avionska karta",null,null,{"$f":"Putovanje[[#This Row],[Budžet]]-Putovanje[[#This Row],[Stvarno]]","v":{"v":0,"d":"0.00 RSD"}},{"$nulls":4},"Fotografije sa odmora",null,null,{"$f":"Razno[[#This Row],[Budžet]]-Razno[[#This Row],[Stvarno]]","v":{"v":0,"d":"0.00 RSD"}}]
[null,null,"Smeštaj",null,null,{"$f":"Putovanje[[#This Row],[Budžet]]-Putovanje[[#This Row],[Stvarno]]","v":{"v":0,"d":"0.00 RSD"}},{"$nulls":4},"Gas ",null,null,{"$f":"Razno[[#This Row],[Budžet]]-Razno[[#This Row],[Stvarno]]","v":{"v":0,"d":"0.00 RSD"}}]
[null,null,"Prevoz",null,null,{"$f":"Putovanje[[#This Row],[Budžet]]-Putovanje[[#This Row],[Stvarno]]","v":{"v":0,"d":"0.00 RSD"}},{"$nulls":4},"Ostalo (kartica u poslednjoj koloni ovog reda za dodavanje reda)",null,null,{"$f":"Razno[[#This Row],[Budžet]]-Razno[[#This Row],[Stvarno]]","v":{"v":0,"d":"0.00 RSD"}}]
[null,null,"Ostalo (kartica u poslednjoj koloni ovog reda za dodavanje reda)",null,null,{"$f":"Putovanje[[#This Row],[Budžet]]-Putovanje[[#This Row],[Stvarno]]","v":{"v":0,"d":"0.00 RSD"}}]
[null,null,"Zbir",{"$f":"SUBTOTAL(109,Putovanje[Budžet])","v":{"v":0,"d":"0.00 RSD"}},{"$f":"SUBTOTAL(109,Putovanje[Stvarno])","v":{"v":0,"d":"0.00 RSD"}},{"$f":"SUBTOTAL(109,Putovanje[Razlika])","v":{"v":0,"d":"0.00 RSD"}},{"$nulls":4},"Zbir",{"$f":"SUBTOTAL(109,Razno[Budžet])","v":{"v":0,"d":"0.00 RSD"}},{"$f":"SUBTOTAL(109,Razno[Stvarno])","v":{"v":0,"d":"0.00 RSD"}},{"$f":"SUBTOTAL(109,Razno[Razlika])","v":{"v":0,"d":"0.00 RSD"}}]